fUST/lending_fUST_20250911
["ID","MTS","AMOUNT","RATE_DAILY","PERIOD"]
[384822790,1757574639360,-480.0,0.00013698,2]
[384822791,1757574639371,-480.0,0.00013698,2]
[384822792,1757574639382,-480.0,0.00013698,2]
[384822793,1757574639393,-480.0,0.00013698,2]
[384822795,1757574639403,-480.0,0.00013698,2]
[384822796,1757574639412,-1465.17,0.00013698,2]
[384822798,1757574639422,-480.0,0.00013698,2]
[384822799,1757574639431,-480.0,0.00013698,2]
[384822800,1757574639441,-480.0,0.00013698,2]
[384822801,1757574639450,-502.18477822,0.00013698,2]
[384822802,1757574639460,-480.0,0.00013698,2]
[384822803,1757574639470,-480.0,0.00013698,2]
[384822804,1757574639479,-480.0,0.00013698,2]
[384822805,1757574639489,-357.33783804,0.00013698,2]
[384822806,1757574639499,-480.0,0.00013698,2]
[384822807,1757574639509,-480.0,0.00013698,2]
[384822808,1757574639519,-480.0,0.00013698,2]
[384822809,1757574639528,-480.0,0.00013698,2]
[384822810,1757574639538,-480.0,0.00013698,2]
[384822811,1757574639547,-480.0,0.00013698,2]
[384822812,1757574639557,-480.0,0.00013698,2]
[384822814,1757574639567,-1327.18,0.00013698,2]
[384822815,1757574639576,-597.76260372,0.00013698,2]
[384822816,1757574639587,-480.0,0.00013698,2]
[384822818,1757574639596,-480.0,0.00013698,2]
[384822819,1757574639606,-480.0,0.00013698,2]
[384822820,1757574639616,-480.0,0.00013698,2]
[384822821,1757574639626,-480.0,0.00013698,2]
[384822822,1757574639636,-482.05137197,0.00013698,2]
[384822823,1757574639645,-480.0,0.00013698,2]
[384822824,1757574639655,-480.0,0.00013698,2]
[384822825,1757574639665,-480.0,0.00013698,2]
[384822826,1757574639675,-485.57307372,0.00013698,2]
[384822827,1757574639686,-480.0,0.00013698,2]
[384822828,1757574639698,-480.0,0.00013698,2]
[384822829,1757574639710,-480.0,0.00013698,2]
[384822830,1757574639720,-484.63827968,0.00013698,2]
[384822831,1757574639730,-485.29132947,0.00013698,2]
[384822832,1757574639740,-480.0,0.00013698,2]
[384822833,1757574639752,-480.0,0.00013698,2]
[384822834,1757574639762,-480.0,0.00013698,2]
[384822835,1757574639772,-480.0,0.00013698,2]
[384822836,1757574639782,-480.0,0.00013698,2]
[384822838,1757574639793,-488.95380079,0.00013698,2]
[384822839,1757574639802,-481.9273457,0.00013698,2]
[384822840,1757574639811,-480.0,0.00013698,2]
[384822841,1757574639821,-483.22558979,0.00013698,2]
[384822842,1757574639830,-480.0,0.00013698,2]
[384822843,1757574639840,-480.0,0.00013698,2]
[384822844,1757574639849,-480.0,0.00013698,2]
[384822845,1757574639858,-480.0,0.00013698,2]
[384822846,1757574639867,-480.0,0.00013698,2]
[384822847,1757574639877,-480.0,0.00013698,2]
[384822848,1757574639886,-480.0,0.00013698,2]
[384822849,1757574639896,-480.0,0.00013698,2]
[384822850,1757574639905,-480.0,0.00013698,2]
[384822851,1757574639914,-480.0,0.00013698,2]
[384822852,1757574639924,-480.0,0.00013698,2]
[384822853,1757574639934,-480.0,0.00013698,2]
[384822854,1757574639944,-489.30032299,0.00013698,2]
[384822855,1757574639953,-480.0,0.00013698,2]
[384822856,1757574639963,-480.0,0.00013698,2]
[384822857,1757574639972,-480.0,0.00013698,2]
[384822858,1757574639982,-480.0,0.00013698,2]
[384822859,1757574639991,-480.0,0.00013698,2]
[384822860,1757574640000,-480.0,0.00013698,2]
[384822861,1757574640010,-480.0,0.00013698,2]
[384822862,1757574640019,-480.0,0.00013698,2]
[384822863,1757574640029,-480.0,0.00013698,2]
[384822864,1757574640038,-480.0,0.00013698,2]
[384822865,1757574640047,-480.0,0.00013698,2]
[384822867,1757574640057,-480.0,0.00013698,2]
[384822869,1757574640066,-480.0,0.00013698,2]
[384822870,1757574640075,-486.57929784,0.00013698,2]
[384822871,1757574640084,-480.0,0.00013698,2]
[384822873,1757574640094,-480.0,0.00013698,2]
[384822876,1757574640103,-480.0,0.00013698,2]
[384822878,1757574640113,-480.0,0.00013698,2]
[384822879,1757574640122,-480.0,0.00013698,2]
[384822880,1757574640132,-480.0,0.00013698,2]
[384822881,1757574640142,-480.0,0.00013698,2]
[384822882,1757574640151,-481.79660351,0.00013698,2]
[384822883,1757574640160,-481.73017439,0.00013698,2]
[384822884,1757574640170,-480.0,0.00013698,2]
[384822885,1757574640179,-480.0,0.00013698,2]
[384822886,1757574640189,-480.0,0.00013698,2]
[384822887,1757574640198,-480.0,0.00013698,2]
[384822888,1757574640208,-480.0,0.00013698,2]
[384822889,1757574640217,-480.0,0.00013698,2]
[384822890,1757574640227,-480.0,0.00013698,2]
[384822891,1757574640236,-480.0,0.00013698,2]
[384822892,1757574640245,-483.62397223,0.00013698,2]
[384822893,1757574640255,-482.49899168,0.00013698,2]
[384822894,1757574640266,-480.0,0.00013698,2]
[384822895,1757574640275,-480.0,0.00013698,2]
[384822896,1757574640285,-480.0,0.00013698,2]
[384822897,1757574640294,-480.0,0.00013698,2]
[384822898,1757574640303,-342.69892464,0.00013698,2]
[384822899,1757574640313,-496.35746441,0.00013698,2]
[384822900,1757574640324,-480.0,0.00013698,2]
[384822901,1757574640334,-480.0,0.00013698,2]
[384822902,1757574640344,-480.0,0.00013698,2]
[384822903,1757574640353,-480.0,0.00013698,2]
[384822904,1757574640362,-480.0,0.00013698,2]
[384822905,1757574640371,-1835.31,0.00013698,2]
[384822906,1757574640381,-375.73492449,0.00013698,2]
[384822907,1757574640390,-480.0,0.00013698,2]
[384822908,1757574640399,-181.86022781,0.00013698,2]
[384822909,1757574640408,-480.0,0.00013698,2]
[384822910,1757574640417,-480.0,0.00013698,2]
[384822911,1757574640427,-480.0,0.00013698,2]
[384822912,1757574640436,-480.0,0.00013698,2]
[384822913,1757574640448,-480.0,0.00013698,2]
[384822914,1757574640458,-486.97312023,0.00013698,2]
[384822915,1757574640467,-480.0,0.00013698,2]
[384822916,1757574640476,-480.0,0.00013698,2]
[384822917,1757574640485,-480.0,0.00013698,2]
[384822918,1757574640495,-488.88660644,0.00013698,2]
[384822919,1757574640504,-480.0,0.00013698,2]
[384822920,1757574640513,-628.26,0.00013698,2]
[384822921,1757574640522,-489.35386303,0.00013698,2]
[384822922,1757574640534,-480.0,0.00013698,2]
[384822923,1757574640543,-480.0,0.00013698,2]
[384822924,1757574640553,-480.0,0.00013698,2]
[384822925,1757574640562,-480.0,0.00013698,2]
[384822926,1757574640571,-481.99828684,0.00013698,2]
[384822927,1757574640580,-480.0,0.00013698,2]
[384822928,1757574640589,-480.0,0.00013698,2]
[384822929,1757574640600,-480.0,0.00013698,2]
[384822930,1757574640719,-480.0,0.00013698,2]
[384822931,1757574640728,-480.0,0.00013698,2]
[384822932,1757574640738,-481.68149042,0.00013698,2]
[384822933,1757574640748,-597.6317985,0.00013698,2]
[384822934,1757574640758,-480.0,0.00013698,2]
[384822935,1757574640768,-480.0,0.00013698,2]
[384822936,1757574640777,-480.38440543,0.00013698,2]
[384822937,1757574640788,-480.0,0.00013698,2]
[384822938,1757574640798,-480.0,0.00013698,2]
[384822939,1757574640807,-480.0,0.00013698,2]
[384822940,1757574640817,-481.52005957,0.00013698,2]
[384822941,1757574640826,-480.0,0.00013698,2]
[384822942,1757574640835,-480.0,0.00013698,2]
[384822943,1757574640844,-480.0,0.00013698,2]
[384822944,1757574640854,-602.69067231,0.00013698,2]
[384822945,1757574640863,-480.0,0.00013698,2]
[384822946,1757574640872,-480.0,0.00013698,2]
[384822947,1757574640883,-180.0,0.00013698,2]
[384822948,1757574640892,-352.22122218,0.00013698,2]
[384822949,1757574640902,-483.09925569,0.00013698,2]
[384822950,1757574640911,-285.15773474,0.00013698,2]
[384822951,1757574640921,-480.0,0.00013698,2]
[384822952,1757574640930,-519.16453384,0.00013698,2]
[384822953,1757574640939,-480.0,0.00013698,2]
[384822954,1757574640948,-480.0,0.00013698,2]
[384822955,1757574640957,-480.0,0.00013698,2]
[384822956,1757574640966,-1811.64,0.00013698,2]
[384822957,1757574640977,-480.0,0.00013698,2]
[384822958,1757574640986,-480.0,0.00013698,2]
[384822959,1757574640995,-480.0,0.00013698,2]
[384822960,1757574641005,-479.25173635,0.00013698,2]
[384822961,1757574641015,-480.0,0.00013698,2]
[384822962,1757574641024,-486.27974761,0.00013698,2]
[384822963,1757574641033,-480.0,0.00013698,2]
[384822964,1757574641042,-480.0,0.00013698,2]
[384822965,1757574641051,-480.0,0.00013698,2]
[384822966,1757574641061,-480.0,0.00013698,2]
[384822967,1757574641071,-275.09090006,0.00013698,2]
[384822968,1757574641079,-480.0,0.00013698,2]
[384822969,1757574641089,-481.70594281,0.00013698,2]
[384822970,1757574641098,-480.0,0.00013698,2]
[384822971,1757574641107,-480.0,0.00013698,2]
[384822972,1757574641116,-480.0,0.00013698,2]
[384822973,1757574641125,-480.0,0.00013698,2]
[384822974,1757574641134,-502.4784306,0.00013698,2]
[384822975,1757574641143,-191.88210211,0.00013698,2]
[384822976,1757574641152,-480.0,0.00013698,2]
[384822977,1757574641161,-480.0,0.00013698,2]
[384822978,1757574641171,-500.0,0.00013698,2]
[384822979,1757574641180,-22736.15181738,0.00013698,2]
[384822980,1757574641190,-278.852829,0.00013699,2]
[384822981,1757574641199,-3526.78403205,0.00013872,2]
[384822982,1757574641209,-300.0,0.0001397,2]
[384822983,1757574641218,-300.0,0.0001397,2]
[384822984,1757574641227,-300.0,0.0001397,2]
[384822985,1757574641236,-300.0,0.0001397,2]
[384822986,1757574641246,-300.0,0.0001397,2]
[384822987,1757574641255,-300.0,0.0001397,2]
[384822988,1757574641264,-300.0,0.0001397,2]
[384822989,1757574641273,-300.0,0.0001397,2]
[384822990,1757574641283,-300.0,0.0001397,2]
[384822991,1757574641293,-300.0,0.0001397,2]
[384822992,1757574641302,-300.0,0.0001397,2]
[384822993,1757574641312,-300.0,0.0001397,2]
[384822994,1757574641321,-300.0,0.0001397,2]
[384822995,1757574641331,-300.0,0.0001397,2]
[384822996,1757574641340,-300.0,0.0001397,2]
[384822997,1757574641349,-600.0,0.0001397,2]
[384822998,1757574641359,-497.80431111,0.00013972,2]
[384822999,1757574641368,-480.0,0.00013972,2]
[384823000,1757574641377,-480.0,0.00013972,2]
[384823001,1757574641386,-483.12809752,0.00013972,2]
[384823002,1757574641395,-480.0,0.00013972,2]
[384823003,1757574641405,-480.0,0.00013972,2]
[384823004,1757574641415,-443.85,0.00013972,2]
[384823005,1757574641424,-398.359689,0.00013972,2]
[384823006,1757574641433,-480.0,0.00013972,2]
[384823007,1757574641443,-480.0,0.00013972,2]
[384823008,1757574641452,-480.0,0.00013972,2]
[384823009,1757574641461,-362.54959105,0.00013972,2]
[384823010,1757574641470,-480.0,0.00013972,2]
[384823011,1757574641479,-485.5821827,0.00013972,2]
[384823012,1757574641489,-480.0,0.00013972,2]
[384823013,1757574641498,-482.75893996,0.00013972,2]
[384823014,1757574641508,-480.0,0.00013972,2]
[384823015,1757574641517,-496.62725519,0.00013972,2]
[384823016,1757574641527,-603.93239308,0.00013972,2]
[384823017,1757574641536,-480.0,0.00013972,2]
[384823018,1757574641545,-482.99080046,0.00013972,2]
[384823019,1757574641554,-480.0,0.00013972,2]
[384823020,1757574641564,-480.0,0.00013972,2]
[384823021,1757574641573,-177.66,0.00013972,2]
[384823022,1757574641582,-480.0,0.00013972,2]
[384823023,1757574641591,-480.0,0.00013972,2]
[384823024,1757574641601,-523.02324956,0.00013972,2]
[384823025,1757574641611,-602.31,0.00013972,2]
[384823026,1757574641620,-480.0,0.00013972,2]
[384823027,1757574641630,-401.64618975,0.00013972,2]
[384823028,1757574641639,-1465.17,0.00013972,2]
[384823029,1757574641649,-483.80790252,0.00013972,2]
[384823030,1757574641658,-480.0,0.00013972,2]
[384823031,1757574641669,-480.0,0.00013972,2]
[384823032,1757574641678,-480.0,0.00013972,2]
[384823033,1757574641688,-480.0,0.00013972,2]
[384823034,1757574641700,-480.0,0.00013972,2]
[384823035,1757574641712,-483.51959116,0.00013972,2]
[384823036,1757574641722,-480.0,0.00013972,2]
[384823037,1757574641732,-1327.18,0.00013972,2]
[384823038,1757574641742,-480.0,0.00013972,2]
[384823039,1757574641751,-480.0,0.00013972,2]
[384823040,1757574641759,-480.0,0.00013972,2]
[384823041,1757574641769,-302.0,0.00013972,2]
[384823042,1757574641778,-480.0,0.00013972,2]
[384823043,1757574641788,-517.00166691,0.00013972,2]
[384823044,1757574641797,-480.0,0.00013972,2]
[384823045,1757574641806,-480.0,0.00013972,2]
[384823046,1757574641816,-173.25523764,0.00013972,2]
[384823047,1757574641825,-480.0,0.00013972,2]
[384823048,1757574641834,-480.0,0.00013972,2]
[384823049,1757574641843,-480.0,0.00013972,2]
[384823050,1757574641852,-490.98460683,0.00013972,2]
[384823051,1757574641862,-247.64938142,0.00013972,2]
[384823052,1757574641871,-491.99261058,0.00013972,2]
[384823053,1757574641880,-480.0,0.00013972,2]
[384823054,1757574641889,-480.0,0.00013972,2]
[384823055,1757574641899,-480.0,0.00013972,2]
[384823056,1757574641908,-480.0,0.00013972,2]
[384823057,1757574641917,-480.0,0.00013972,2]
[384823058,1757574641926,-480.0,0.00013972,2]
[384823059,1757574641936,-480.0,0.00013972,2]
[384823060,1757574641945,-480.0,0.00013972,2]
[384823061,1757574641955,-480.0,0.00013972,2]
[384823062,1757574641964,-480.0,0.00013972,2]
[384823063,1757574641973,-480.0,0.00013972,2]
[384823064,1757574641983,-480.0,0.00013972,2]
[384823065,1757574641994,-480.0,0.00013972,2]
[384823066,1757574642003,-482.60641857,0.00013972,2]
[384823067,1757574642012,-480.0,0.00013972,2]
[384823068,1757574642020,-480.0,0.00013972,2]
[384823069,1757574642030,-193.64,0.00013972,2]
[384823070,1757574642039,-480.0,0.00013972,2]
[384823071,1757574642048,-480.0,0.00013972,2]
[384823072,1757574642058,-480.0,0.00013972,2]
[384823073,1757574642067,-480.0,0.00013972,2]
[384823074,1757574642076,-480.0,0.00013972,2]
[384823075,1757574642085,-480.0,0.00013972,2]
[384823076,1757574642094,-480.0,0.00013972,2]
[384823077,1757574642103,-480.0,0.00013972,2]
[384823078,1757574642112,-486.16179208,0.00013972,2]
[384823079,1757574642122,-480.0,0.00013972,2]
[384823080,1757574642132,-480.0,0.00013972,2]
[384823081,1757574642142,-485.14562723,0.00013972,2]
[384823082,1757574642151,-509.91698162,0.00013972,2]
[384823083,1757574642160,-482.87922254,0.00013972,2]
[384823084,1757574642170,-481.9934786,0.00013972,2]
[384823085,1757574642179,-480.0,0.00013972,2]
[384823086,1757574642188,-1835.31,0.00013972,2]
[384823087,1757574642198,-480.0,0.00013972,2]
[384823088,1757574642207,-480.0,0.00013972,2]
[384823089,1757574642216,-484.73344031,0.00013972,2]
[384823090,1757574642226,-480.0,0.00013972,2]
[384823091,1757574642234,-480.0,0.00013972,2]
[384823092,1757574642243,-494.87028104,0.00013972,2]
[384823093,1757574642252,-480.0,0.00013972,2]
[384823094,1757574642261,-480.0,0.00013972,2]
[384823095,1757574642270,-480.0,0.00013972,2]
[384823096,1757574642280,-480.0,0.00013972,2]
[384823097,1757574642291,-600.86658604,0.00013972,2]
[384823098,1757574642301,-480.0,0.00013972,2]
[384823099,1757574642310,-467.25,0.00013972,2]
[384823100,1757574642319,-480.0,0.00013972,2]
[384823102,1757574642328,-480.0,0.00013972,2]
[384823103,1757574642337,-480.0,0.00013972,2]
[384823104,1757574642346,-480.0,0.00013972,2]
[384823105,1757574642355,-480.0,0.00013972,2]
[384823106,1757574642364,-480.0,0.00013972,2]
[384823107,1757574642374,-480.0,0.00013972,2]
[384823108,1757574642383,-1811.64,0.00013972,2]
[384823109,1757574642392,-480.0,0.00013972,2]
[384823110,1757574642401,-480.0,0.00013972,2]
[384823111,1757574642410,-480.0,0.00013972,2]
[384823112,1757574642420,-480.0,0.00013972,2]
[384823113,1757574642429,-153.19,0.00013972,2]
[384823114,1757574642439,-480.0,0.00013972,2]
[384823115,1757574642448,-480.0,0.00013972,2]
[384823116,1757574642457,-480.0,0.00013972,2]
[384823117,1757574642466,-483.30839588,0.00013972,2]
[384823118,1757574642476,-504.86977798,0.00013972,2]
[384823119,1757574642485,-500.0,0.00014033,2]
[384823120,1757574642494,-480.0,0.00014246,2]
[384823121,1757574642503,-480.0,0.00014246,2]
[384823122,1757574642513,-480.0,0.00014246,2]
[384823123,1757574642522,-417.53000515,0.00014246,2]
[384823124,1757574642532,-480.0,0.00014246,2]
[384823125,1757574642541,-480.0,0.00014246,2]
[384823126,1757574642550,-524.58502884,0.00014246,2]
[384823127,1757574642559,-330.14,0.00014246,2]
[384823128,1757574642568,-480.0,0.00014246,2]
[384823129,1757574642578,-1465.17,0.00014246,2]
[384823130,1757574642587,-480.0,0.00014246,2]
[384823131,1757574642599,-1327.18,0.00014246,2]
[384823132,1757574642608,-480.0,0.00014246,2]
[384823133,1757574642618,-348.37685643,0.00014246,2]
[384823134,1757574642627,-609.42970449,0.00014246,2]
[384823135,1757574642636,-480.0,0.00014246,2]
[384823136,1757574642646,-152.8778251,0.00014246,2]
[384823137,1757574642655,-480.0,0.00014246,2]
[384823138,1757574642664,-480.0,0.00014246,2]
[384823139,1757574642674,-480.0,0.00014246,2]
[384823140,1757574642684,-480.0,0.00014246,2]
[384823141,1757574642693,-480.0,0.00014246,2]
[384823142,1757574642706,-480.0,0.00014246,2]
[384823143,1757574642715,-480.0,0.00014246,2]
[384823144,1757574642725,-278.14,0.00014246,2]
[384823145,1757574642735,-480.0,0.00014246,2]
[384823146,1757574642744,-365.0,0.00014246,2]
[384823147,1757574642753,-480.0,0.00014246,2]
[384823148,1757574642762,-480.0,0.00014246,2]
[384823149,1757574642771,-480.0,0.00014246,2]
[384823150,1757574642781,-336.91,0.00014246,2]
[384823151,1757574642791,-480.0,0.00014246,2]
[384823152,1757574642801,-480.0,0.00014246,2]
[384823153,1757574642810,-480.0,0.00014246,2]
[384823154,1757574642819,-483.99356591,0.00014246,2]
[384823155,1757574642829,-480.0,0.00014246,2]
[384823157,1757574642838,-480.0,0.00014246,2]
[384823158,1757574642848,-480.0,0.00014246,2]
[384823159,1757574642857,-1835.31,0.00014246,2]
[384823160,1757574642867,-485.42015146,0.00014246,2]
[384823161,1757574642875,-492.7602882,0.00014246,2]
[384823162,1757574642884,-283.73591756,0.00014246,2]
[384823163,1757574642893,-488.13084571,0.00014246,2]
[384823164,1757574642903,-480.0,0.00014246,2]
[384823165,1757574642912,-480.0,0.00014246,2]
[384823166,1757574642922,-469.34468138,0.00014246,2]
[384823167,1757574642931,-480.0,0.00014246,2]
[384823168,1757574642940,-480.0,0.00014246,2]
[384823169,1757574642949,-480.0,0.00014246,2]
[384823170,1757574642958,-480.0,0.00014246,2]
[384823171,1757574642967,-480.0,0.00014246,2]
[384823172,1757574642976,-480.0,0.00014246,2]
[384823173,1757574642985,-1811.64,0.00014246,2]
[384823174,1757574642994,-607.61,0.00014246,2]
[384823175,1757574643004,-480.0,0.00014246,2]
[384823176,1757574643013,-480.0,0.00014246,2]
[384823177,1757574643023,-480.0,0.00014246,2]
[384823178,1757574643033,-480.0,0.00014246,2]
[384823179,1757574643042,-500.0,0.00014264,2]
[384823180,1757574643052,-500.0,0.00014264,2]
[384823181,1757574643061,-500.0,0.00014285,2]
[384823182,1757574643070,-500.0,0.00014285,2]
[384823183,1757574643080,-1903.0138115,0.000143,2]
[384823184,1757574643089,-233.10680167,0.00014396,2]
[384823185,1757574643188,-160.0,0.00014396,2]
[384823186,1757574643199,-417.15472785,0.00014396,2]
[384823188,1757574643209,-217.69300629,0.00014396,2]
[384823189,1757574643218,-846.96613202,0.00014396,2]
[384823190,1757574643228,-160.0,0.00014396,2]
[384823191,1757574643236,-530.95967032,0.00014396,2]
[384823192,1757574643245,-160.0,0.00014396,2]
[384823193,1757574643254,-480.0,0.0001452,2]
[384823194,1757574643263,-369.74203454,0.0001452,2]
[384823195,1757574643272,-480.0,0.0001452,2]
[384823196,1757574643281,-480.0,0.0001452,2]
[384823197,1757574643291,-1465.17,0.0001452,2]
[384823198,1757574643300,-480.0,0.0001452,2]
[384823199,1757574643309,-1327.18,0.0001452,2]
[384823200,1757574643319,-480.0,0.0001452,2]
[384823201,1757574643328,-480.0,0.0001452,2]
[384823202,1757574643338,-480.0,0.0001452,2]
[384823203,1757574643347,-480.0,0.0001452,2]
[384823204,1757574643357,-480.0,0.0001452,2]
[384823205,1757574643366,-480.0,0.0001452,2]
[384823206,1757574643376,-480.0,0.0001452,2]
[384823207,1757574643385,-480.0,0.0001452,2]
[384823208,1757574643395,-480.0,0.0001452,2]
[384823209,1757574643404,-480.0,0.0001452,2]
[384823210,1757574643413,-480.0,0.0001452,2]
[384823211,1757574643422,-497.7425171,0.0001452,2]
[384823212,1757574643431,-480.0,0.0001452,2]
[384823213,1757574643441,-480.0,0.0001452,2]
[384823214,1757574643451,-480.0,0.0001452,2]
[384823215,1757574643460,-1835.31,0.0001452,2]
[384823216,1757574643469,-480.0,0.0001452,2]
[384823217,1757574643479,-480.0,0.0001452,2]
[384823218,1757574643489,-480.0,0.0001452,2]
[384823219,1757574643499,-480.0,0.0001452,2]
[384823220,1757574643509,-480.0,0.0001452,2]
[384823221,1757574643518,-229.29,0.0001452,2]
[384823222,1757574643528,-1811.64,0.0001452,2]
[384823223,1757574643538,-480.0,0.0001452,2]
[384823224,1757574643547,-480.0,0.0001452,2]
[384823225,1757574643557,-480.0,0.0001452,2]
[384823226,1757574643566,-480.0,0.0001452,2]
[384823227,1757574643576,-500.0,0.00014525,2]
[384823228,1757574643585,-500.0,0.00014525,2]
[384823229,1757574643595,-500.0,0.00014525,2]
[384823230,1757574643605,-500.0,0.00014525,2]
[384823231,1757574643615,-500.0,0.00014527,2]
[384823232,1757574643624,-500.0,0.00014527,2]
[384823233,1757574643634,-500.0,0.00014527,2]
[384823234,1757574643643,-500.0,0.00014527,2]
[384823235,1757574643653,-402.00279279,0.00014534,2]
[384823236,1757574643662,-500.0,0.00014543,2]
[384823237,1757574643671,-500.0,0.00014543,2]
[384823238,1757574643680,-502.30528819,0.00014581,2]
[384823239,1757574643690,-339.79,0.00014694,2]
[384823240,1757574643703,-164.42309066,0.00014757,2]
[384823241,1757574643712,-501.26335615,0.00014757,2]
[384823243,1757574643721,-500.0,0.00014757,2]
[384823244,1757574643730,-500.0,0.00014757,2]
[384823245,1757574643740,-500.0,0.00014757,2]
[384823246,1757574643750,-500.77986851,0.00014757,2]
[384823247,1757574643760,-500.0,0.00014757,2]
[384823248,1757574643769,-500.0,0.00014757,2]
[384823249,1757574643781,-480.0,0.00014794,2]
[384823250,1757574643790,-480.0,0.00014794,2]
[384823251,1757574643800,-480.0,0.00014794,2]
[384823252,1757574643809,-1465.17,0.00014794,2]
[384823253,1757574643818,-480.0,0.00014794,2]
[384823254,1757574643828,-1327.18,0.00014794,2]
[384823255,1757574643837,-480.0,0.00014794,2]
[384823256,1757574643847,-275.92570471,0.00014794,2]
[384823257,1757574643857,-455.64765956,0.00014794,2]
[384823258,1757574643867,-480.0,0.00014794,2]
[384823259,1757574643876,-480.0,0.00014794,2]
[384823260,1757574643886,-480.0,0.00014794,2]
[384823261,1757574643895,-480.0,0.00014794,2]
[384823262,1757574643905,-480.0,0.00014794,2]
[384823263,1757574643915,-480.0,0.00014794,2]
[384823264,1757574643924,-480.0,0.00014794,2]
[384823265,1757574643934,-480.0,0.00014794,2]
[384823266,1757574643943,-480.0,0.00014794,2]
[384823267,1757574643953,-1835.31,0.00014794,2]
[384823268,1757574643962,-439.53,0.00014794,2]
[384823269,1757574643972,-480.0,0.00014794,2]
[384823270,1757574643981,-480.0,0.00014794,2]
[384823271,1757574643991,-480.0,0.00014794,2]
[384823272,1757574644000,-480.0,0.00014794,2]
[384823273,1757574644010,-1811.64,0.00014794,2]
[384823274,1757574644020,-480.0,0.00014794,2]
[384823275,1757574644030,-480.0,0.00014794,2]
[384823276,1757574644039,-480.0,0.00014794,2]
[384823277,1757574644050,-500.0,0.00014807,2]
[384823278,1757574644059,-1000.0,0.00014812,2]
[384823279,1757574644069,-1001.28086059,0.00014812,2]
[384823280,1757574644078,-1003.49835,0.00014833,2]
[384823281,1757574644089,-501.45101962,0.00014833,2]
[384823282,1757574644099,-500.0,0.00014889,2]
[384823283,1757574644110,-500.0,0.00014889,2]
[384823284,1757574644119,-54210.47982021,0.0001499,2]
[384823285,1757574644129,-500.0,0.00015011,2]
[384823286,1757574644139,-500.0,0.00015011,2]
[384823287,1757574644148,-500.0,0.00015011,2]
[384823288,1757574644157,-500.0,0.00015011,2]
[384823289,1757574644168,-500.0,0.00015011,2]
[384823290,1757574644177,-500.0,0.00015011,2]
[384823291,1757574644186,-500.0,0.00015011,2]
[384823292,1757574644196,-500.0,0.00015011,2]
[384823293,1757574644205,-500.0,0.00015011,2]
[384823294,1757574644215,-500.0,0.00015011,2]
[384823295,1757574644224,-500.0,0.00015011,2]
[384823296,1757574644233,-500.0,0.00015011,2]
[384823297,1757574644243,-480.0,0.00015068,2]
[384823298,1757574644253,-480.0,0.00015068,2]
[384823299,1757574644262,-1465.17,0.00015068,2]
[384823300,1757574644271,-480.0,0.00015068,2]
[384823301,1757574644280,-1327.18,0.00015068,2]
[384823302,1757574644290,-480.0,0.00015068,2]
[384823303,1757574644299,-480.0,0.00015068,2]
[384823304,1757574644308,-480.0,0.00015068,2]